bitfinex-derivatives/quotes_BNBF0:USTF0_20250904
["timestamp","ask_amount","ask_price","bid_price","bid_amount"]
[1757022593585,0.72224019,847.86,847.49,0.79070871]
[1757022593783,0.72224019,847.85,847.49,0.79070871]
[1757022593982,0.20523466,847.87,847.49,0.79070871]
[1757022593983,0.72224019,847.84,847.49,0.79070871]
[1757022594182,0.72224019,847.83,847.49,0.79070871]
[1757022594386,0.72224019,847.82,847.49,0.79070871]
[1757022594587,0.72224019,847.81,847.49,0.79070871]
[1757022594785,0.72224019,847.8,847.49,0.79070871]
[1757022594986,0.72224019,847.79,847.49,0.79070871]
[1757022595187,0.72224019,847.78,847.49,0.79070871]
[1757022595387,0.20523466,847.87,847.49,0.79070871]
[1757022595788,0.9275259,847.87,847.49,0.79070871]
[1757022596085,0.72229124,847.86,847.49,0.79070871]
[1757022596289,0.72229124,847.85,847.49,0.79070871]
[1757022596586,0.72229124,847.84,847.49,0.79070871]
[1757022596888,0.72229124,847.83,847.49,0.79070871]
[1757022597087,0.72229124,847.82,847.49,0.79070871]
[1757022597286,0.72229124,847.81,847.49,0.79070871]
[1757022597488,0.72229124,847.8,847.49,0.79070871]
[1757022597686,0.72229124,847.79,847.49,0.79070871]
[1757022597887,0.20523466,847.87,847.49,0.79070871]
[1757022598289,0.92702253,847.87,847.49,0.79070871]
[1757022598486,0.72178787,847.86,847.49,0.79070871]
[1757022598684,0.72178787,847.85,847.49,0.79070871]
[1757022598889,0.72178787,847.84,847.49,0.79070871]
[1757022599086,0.72178787,847.83,847.49,0.79070871]
[1757022599290,0.72178787,847.82,847.49,0.79070871]
[1757022599591,0.72178787,847.81,847.49,0.79070871]
[1757022599785,0.72178787,847.8,847.49,0.79070871]
[1757022599989,0.72178787,847.79,847.49,0.79070871]
[1757022600189,0.20523466,847.87,847.49,0.79070871]
[1757022600687,0.20523466,847.87,847.48,0.79070871]
[1757022600986,0.92702295,847.87,847.48,0.79070871]
[1757022601192,0.72178829,847.86,847.48,0.79070871]
[1757022601492,0.72178829,847.85,847.48,0.79070871]
[1757022601691,0.72178829,847.84,847.48,0.79070871]
[1757022601891,0.72178829,847.83,847.48,0.79070871]
[1757022602089,0.72178829,847.82,847.48,0.79070871]
[1757022602289,0.72178829,847.81,847.48,0.79070871]
[1757022602494,0.72178829,847.8,847.48,0.79070871]
[1757022602695,0.72178829,847.79,847.48,0.79070871]
[1757022602896,0.20523466,847.87,847.48,0.79070871]
[1757022606695,0.92702316,847.87,847.48,0.79070871]
[1757022606895,0.7217885,847.86,847.48,0.79070871]
[1757022607096,0.7217885,847.85,847.48,0.79307438]
[1757022607302,0.7217885,847.84,847.48,0.79307438]
[1757022607497,0.7217885,847.83,847.48,0.79307438]
[1757022607695,0.7217885,847.82,847.48,0.79307438]
[1757022607898,0.7217885,847.81,847.48,0.79307438]
[1757022608200,0.7217885,847.8,847.48,0.79307438]
[1757022608401,0.7217885,847.79,847.48,0.79307438]
[1757022608698,0.20523466,847.87,847.48,0.79307438]
[1757022609098,0.20523466,847.87,847.49,0.79307438]
[1757022609296,0.92702342,847.87,847.49,0.79307438]
[1757022609501,0.72178876,847.86,847.49,0.79307438]
[1757022609701,0.72178876,847.85,847.49,0.79307438]
[1757022609900,0.72178876,847.84,847.49,0.79307438]
[1757022610098,0.72178876,847.83,847.49,0.79307438]
[1757022610299,0.72178876,847.82,847.49,0.79307438]
[1757022610504,0.72178876,847.81,847.49,0.79307438]
[1757022610702,0.72178876,847.8,847.49,0.79307438]
[1757022610903,0.72178876,847.79,847.49,0.79307438]
[1757022611097,0.20523466,847.87,847.49,0.79307438]
[1757022611801,0.92702362,847.87,847.49,0.79307438]
[1757022612005,0.72178896,847.86,847.49,0.79307438]
[1757022612204,0.72178896,847.85,847.49,0.79307438]
[1757022612406,0.72178896,847.84,847.49,0.79307438]
[1757022612706,0.72178896,847.83,847.49,0.79307438]
[1757022612906,0.72178896,847.82,847.49,0.79307438]
[1757022613202,0.72178896,847.81,847.49,0.79307438]
[1757022613406,0.72178896,847.8,847.49,0.79307438]
[1757022613605,0.72178896,847.79,847.49,0.79307438]
[1757022613905,0.20523466,847.87,847.49,0.79307438]
[1757022614504,0.92702367,847.87,847.49,0.79307438]
[1757022614708,0.72178901,847.86,847.49,0.79307438]
[1757022615008,0.72178901,847.85,847.49,0.79307438]
[1757022615207,0.72178901,847.84,847.49,0.79307438]
[1757022615404,0.72178901,847.83,847.49,0.79307438]
[1757022615603,0.7217891,847.82,847.48,0.79307438]
[1757022615804,0.7217891,847.81,847.48,0.79307438]
[1757022616107,0.7217891,847.8,847.47,0.79307438]
[1757022616403,0.7217891,847.79,847.47,0.79307438]
[1757022616608,0.20523466,847.87,847.47,0.79307438]
[1757022617805,0.92702383,847.87,847.47,0.79307438]
[1757022618009,0.72178917,847.86,847.47,0.79307438]
[1757022618212,0.72178917,847.85,847.47,0.79307438]
[1757022618411,0.72178917,847.84,847.47,0.79307438]
[1757022618611,0.72178917,847.83,847.47,0.79307438]
[1757022618911,0.72178917,847.82,847.47,0.79307438]
[1757022619113,0.72178917,847.81,847.47,0.79307438]
[1757022619326,0.72178917,847.8,847.47,0.79307438]
[1757022619610,0.72178917,847.79,847.47,0.79307438]
[1757022619814,0.20523466,847.87,847.47,0.79307438]
[1757022621213,0.20523466,847.87,847.48,0.79307438]
[1757022621410,0.20523466,847.87,847.47,0.79307438]
[1757022621808,0.92702348,847.87,847.47,0.79307438]
[1757022622010,0.72178882,847.86,847.47,0.79307438]
[1757022622312,0.72178882,847.85,847.47,0.79307438]
[1757022622513,0.72178882,847.84,847.47,0.79307438]
[1757022622712,0.72178882,847.83,847.47,0.79307438]
[1757022622914,0.72178882,847.82,847.47,0.79307438]
[1757022623116,0.72178847,847.81,847.47,0.79307438]
[1757022623314,0.72178847,847.8,847.47,0.79307438]
[1757022623514,0.72178847,847.79,847.47,0.79307438]
[1757022623712,0.20523466,847.87,847.47,0.79307438]
[1757022624810,0.92702308,847.87,847.47,0.79307438]
[1757022625013,0.72178842,847.86,847.47,0.79307438]
[1757022625214,0.72178842,847.85,847.47,0.79307438]
[1757022625512,0.72178842,847.84,847.49,0.79307438]
[1757022625711,0.72178842,847.83,847.49,0.79307438]
[1757022625913,0.72178842,847.82,847.49,0.79307438]
[1757022626126,0.72178842,847.81,847.49,0.79307438]
[1757022626317,0.72178842,847.8,847.49,0.79307438]
[1757022626517,0.72178842,847.79,847.49,0.79307438]
[1757022626819,0.20523466,847.87,847.49,0.79307438]
[1757022627517,0.92692211,847.87,847.49,0.79307438]
[1757022627714,0.72168745,847.86,847.49,0.79307438]
[1757022627919,0.72168745,847.85,847.49,0.79307438]
[1757022628217,0.72168745,847.84,847.49,0.79307438]
[1757022628417,0.72168745,847.83,847.49,0.79307438]
[1757022628625,0.72168745,847.82,847.49,0.79307438]
[1757022628818,0.72168745,847.81,847.49,0.79307438]
[1757022629017,0.72168745,847.8,847.49,0.79307438]
[1757022629218,0.72168745,847.79,847.49,0.79307438]
[1757022629419,0.20523466,847.87,847.49,0.79307438]
[1757022630118,0.9269219,847.87,847.49,0.79307438]
[1757022630320,0.72168724,847.86,847.49,0.79307438]
[1757022630619,0.72168724,847.85,847.49,0.79307438]
[1757022630819,0.72168724,847.84,847.49,0.79307438]
[1757022631015,0.72168724,847.83,847.49,0.79307438]
[1757022631316,0.72168724,847.82,847.49,0.79307438]
[1757022631514,0.72168724,847.81,847.49,0.79307438]
[1757022631816,0.72168724,847.8,847.49,0.79307438]
[1757022632019,0.72168724,847.79,847.49,0.79307438]
[1757022632219,0.20523466,847.87,847.49,0.79307438]
[1757022632819,0.92692189,847.87,847.49,0.79307438]
[1757022633020,0.72168723,847.86,847.49,0.79307438]
[1757022633316,0.72168723,847.85,847.49,0.79307438]
[1757022633520,0.72168723,847.84,847.49,0.79307438]
[1757022633718,0.72168723,847.83,847.49,0.79307438]
[1757022633927,0.72168723,847.82,847.49,0.79307438]
[1757022634122,0.72168723,847.81,847.49,0.79307438]
[1757022634418,0.72168723,847.8,847.49,0.79307438]
[1757022634616,0.20523466,847.87,847.49,0.79307438]
[1757022634617,0.72168723,847.79,847.49,0.79307438]
[1757022634817,0.20523466,847.87,847.49,0.79307438]
[1757022635418,0.92692206,847.87,847.49,0.79307438]
[1757022635622,0.7216874,847.86,847.49,0.79307438]
[1757022635922,0.7216874,847.85,847.49,0.79307438]
[1757022636218,0.7216874,847.84,847.49,0.79307438]
[1757022636417,0.20523466,847.87,847.49,0.79307438]
[1757022636418,0.7216874,847.83,847.49,0.79307438]
[1757022636626,0.20523466,847.87,847.49,0.79307438]
[1757022636627,0.7216874,847.82,847.49,0.79307438]
[1757022636822,0.7216874,847.81,847.49,0.79307438]
[1757022637025,0.7216874,847.8,847.49,0.79307438]
[1757022637225,0.7216874,847.79,847.49,0.79307438]
[1757022637431,0.7216874,847.78,847.49,0.79307438]
[1757022637725,0.20523466,847.87,847.49,0.79307438]
[1757022638325,0.92692203,847.87,847.49,0.79307438]
[1757022638523,0.72168737,847.86,847.49,0.79307438]
[1757022638727,0.72168737,847.85,847.49,0.79307438]
[1757022638924,0.72168737,847.84,847.49,0.79307438]
[1757022639221,0.72168737,847.83,847.49,0.79307438]
[1757022639427,0.72168737,847.82,847.49,0.79307438]
[1757022639623,0.72168737,847.81,847.49,0.79307438]
[1757022639827,0.72168737,847.8,847.49,0.79307438]
[1757022640024,0.72168737,847.79,847.49,0.79307438]
[1757022640324,0.72168737,847.78,847.49,0.79307438]
[1757022640523,0.20523466,847.87,847.49,0.79307438]
[1757022641123,0.92692206,847.87,847.49,0.79307438]
[1757022641328,0.7216874,847.86,847.49,0.79307438]
[1757022641525,0.7216874,847.85,847.49,0.79307438]
[1757022641731,0.7216874,847.84,847.49,0.79307438]
[1757022642030,0.7216874,847.83,847.49,0.79307438]
[1757022642228,0.7216874,847.82,847.49,0.79307438]
[1757022642528,0.7216874,847.81,847.49,0.79307438]
[1757022642824,0.7216874,847.8,847.49,0.79307438]
[1757022643026,0.7216874,847.79,847.49,0.79307438]
[1757022643227,0.7216874,847.78,847.49,0.79307438]
[1757022643431,0.20523466,847.87,847.49,0.79307438]
[1757022644126,0.92692203,847.87,847.49,0.79307438]
[1757022644326,0.72168737,847.86,847.49,0.79307438]
[1757022644533,0.72168737,847.85,847.49,0.79307438]
[1757022644733,0.72168737,847.84,847.49,0.79307438]
[1757022644932,0.72168737,847.83,847.49,0.79307438]
[1757022645130,0.72168737,847.82,847.49,0.79307438]
[1757022645334,0.72168737,847.81,847.49,0.79307438]
[1757022645532,0.72168737,847.8,847.49,0.79307438]
[1757022645733,0.72168737,847.79,847.49,0.79307438]
[1757022645936,0.72168737,847.78,847.49,0.79307438]
[1757022646135,0.20523466,847.87,847.49,0.79307438]
[1757022646834,0.92692203,847.87,847.49,0.79307438]
[1757022647037,0.72168737,847.86,847.49,0.79307438]
[1757022647232,0.72168737,847.85,847.49,0.79307438]
[1757022647432,0.72168737,847.84,847.49,0.79307438]
[1757022647635,0.72168737,847.83,847.49,0.79307438]
[1757022647848,0.72168737,847.82,847.49,0.79307438]
[1757022648043,0.72168737,847.81,847.49,0.79307438]
[1757022648338,0.72168737,847.8,847.49,0.79307438]
[1757022648538,0.72168737,847.79,847.49,0.79307438]
[1757022648740,0.72168737,847.78,847.49,0.79307438]
[1757022648937,0.20523466,847.87,847.49,0.79307438]
[1757022649537,0.92692206,847.87,847.49,0.79307438]
[1757022649736,0.7216874,847.86,847.49,0.79307438]
[1757022650040,0.7216874,847.85,847.49,0.79307438]
[1757022650240,0.7216874,847.84,847.49,0.79307438]
[1757022650435,0.7216874,847.83,847.49,0.79307438]
[1757022650637,0.7216874,847.82,847.49,0.79307438]
[1757022650850,0.7216874,847.81,847.49,0.79307438]
[1757022651038,0.7216874,847.8,847.49,0.79307438]
[1757022651351,0.7216874,847.79,847.49,0.79307438]
[1757022651542,0.7216874,847.78,847.49,0.79307438]
[1757022651840,0.20523466,847.87,847.49,0.79338241]
[1757022652439,0.92692211,847.87,847.49,0.79338241]
[1757022652637,0.72168745,847.86,847.49,0.79338241]
[1757022652843,0.72168745,847.85,847.35,1.0573912]
[1757022653038,0.72168745,847.84,847.49,0.79338244]
[1757022653238,0.72168745,847.83,847.49,0.79338244]
[1757022653441,0.72168745,847.82,847.49,0.79338244]
[1757022653641,0.72168745,847.81,847.49,0.79338244]
[1757022653852,0.72168745,847.8,847.49,0.79338244]
[1757022654040,0.72168745,847.79,847.49,0.79338244]
[1757022654251,0.72168745,847.78,847.49,0.79338244]
[1757022654451,0.20523466,847.87,847.49,0.79338244]
[1757022655143,0.92692223,847.87,847.49,0.79338244]
[1757022655342,0.72168757,847.86,847.49,0.79338244]
[1757022655545,0.72168757,847.85,847.49,0.79338244]
[1757022655840,0.72168757,847.84,847.49,0.79338244]
[1757022656044,0.72168757,847.83,847.49,0.79338244]
[1757022656240,0.72168757,847.82,847.49,0.79338244]
[1757022656445,0.72168757,847.81,847.49,0.79338244]
[1757022656641,0.72168757,847.8,847.49,0.79338244]
[1757022656843,0.72168757,847.79,847.49,0.79338244]
[1757022657041,0.20523466,847.87,847.49,0.79338244]
[1757022657445,0.20523466,847.87,847.48,0.79338244]
[1757022658348,0.92688876,847.87,847.48,0.79338244]
[1757022658542,0.7216541,847.86,847.48,0.79338244]
[1757022658746,0.7216541,847.85,847.48,0.79338244]
[1757022658943,0.7216541,847.84,847.48,0.79338244]
[1757022659145,0.7216541,847.83,847.48,0.79338244]
[1757022659348,0.7216541,847.82,847.48,0.79338244]
[1757022659553,0.7216541,847.81,847.48,0.79338244]
[1757022659748,0.7216541,847.8,847.48,0.79338244]
[1757022660045,0.7216541,847.79,847.48,0.79338244]
[1757022660244,0.20523466,847.87,847.48,0.79338244]
[1757022661246,0.92688875,847.87,847.48,0.79338244]
[1757022661451,0.72165409,847.86,847.48,0.79338244]
[1757022661750,0.72165409,847.85,847.48,0.79338244]
[1757022661950,0.72165409,847.84,847.48,0.79338244]
[1757022662151,0.72165409,847.83,847.48,0.79338244]
[1757022662351,0.72165409,847.82,847.48,0.79338244]
[1757022662647,0.72165409,847.81,847.48,0.79338244]
[1757022662947,0.72165409,847.81,846.85,0.20523951]
[1757022662948,0.72165409,847.8,847.49,0.79338244]
[1757022663150,0.72165409,847.79,847.49,0.79338244]
[1757022663352,0.20523466,847.87,847.49,0.79338244]
[1757022664052,0.92688927,847.87,847.48,0.79338244]
[1757022664348,0.72165461,847.86,847.48,0.79338244]
[1757022664552,0.72165461,847.85,847.48,0.79338244]
[1757022664753,0.72165461,847.84,847.48,0.79338244]
[1757022664949,0.72165461,847.83,847.48,0.79338244]
[1757022665148,0.72165461,847.82,847.48,0.79338244]
[1757022665349,0.72165461,847.81,847.48,0.79338244]
[1757022665652,0.20523466,847.87,847.48,0.79338244]
[1757022667450,0.20523466,847.87,847.49,0.79338244]
[1757022667950,0.92688931,847.87,847.49,0.79338244]
[1757022668148,0.72165465,847.86,847.49,0.79338244]
[1757022668449,0.72165465,847.85,847.49,0.79338244]
[1757022668647,0.72165465,847.84,847.49,0.79338244]
[1757022668853,0.72165465,847.83,847.49,0.79338244]
[1757022669049,0.72165465,847.82,847.49,0.79338244]
[1757022669264,0.72165465,847.81,847.49,0.79338244]
[1757022669553,0.72165465,847.8,847.49,0.79338244]
[1757022669855,0.72165465,847.79,847.49,0.79338244]
[1757022670054,0.20523466,847.87,847.49,0.79338244]
[1757022671152,0.92688944,847.87,847.49,0.79338244]
[1757022671351,0.72165478,847.86,847.49,0.79338244]
[1757022671550,0.72165478,847.85,847.49,0.79338244]
[1757022671854,0.72165478,847.84,847.49,0.79338244]
[1757022672151,0.72165478,847.83,847.49,0.79338244]
[1757022672354,0.20523466,847.87,847.49,0.79338244]
[1757022672355,0.72165478,847.82,847.49,0.79338244]
[1757022672656,0.72165478,847.81,847.49,0.79338244]
[1757022672854,0.72165478,847.8,847.49,0.79338244]
[1757022673154,0.72165478,847.79,847.49,0.79338244]
[1757022673354,0.72165478,847.78,847.49,0.79338244]
[1757022673655,0.20523466,847.87,847.47,0.79338244]
[1757022674952,0.92688956,847.87,847.47,0.79338244]
[1757022675152,0.7216549,847.86,847.47,0.79338244]
[1757022675357,0.20523466,847.87,847.47,0.79338244]
[1757022675358,0.7216549,847.85,847.47,0.79338244]
[1757022675556,0.7216549,847.84,847.47,0.79338244]
[1757022675756,0.7216549,847.83,847.47,0.79338244]
[1757022675957,0.7216549,847.82,847.47,0.79338244]
[1757022676156,0.7216549,847.81,847.47,0.79338244]
[1757022676368,0.7216549,847.8,847.47,0.79338244]
[1757022676560,0.20523466,847.87,847.47,0.79338244]
[1757022677859,0.92688969,847.87,847.47,0.79338244]
[1757022678055,0.72165503,847.86,847.47,0.79338244]
[1757022678257,0.72165512,847.85,847.47,0.79338244]
[1757022678457,0.72165512,847.84,847.47,0.79338244]
[1757022678654,0.72165512,847.83,847.47,0.79338244]
[1757022678958,0.72165512,847.82,847.47,0.79338244]
[1757022679156,0.72165512,847.81,847.47,0.79338244]
[1757022679359,0.72165512,847.8,847.47,0.79338244]
[1757022679560,0.72165512,847.79,847.47,0.79338244]
[1757022679760,0.20523466,847.87,847.47,0.79338244]
[1757022682258,0.92688978,847.87,847.47,0.79338244]
[1757022682560,0.72165512,847.86,847.47,0.79338244]
[1757022682757,0.72165512,847.85,847.47,0.79338244]
[1757022683057,0.72165512,847.84,847.47,0.79338244]
[1757022683261,0.72165512,847.83,847.47,0.79338244]
[1757022683460,0.72165512,847.82,847.47,0.79338244]
[1757022683761,0.72165512,847.81,847.49,0.79338244]
[1757022683961,0.72165512,847.8,847.49,0.79338244]
[1757022684261,0.72165512,847.79,847.49,0.79338244]
[1757022684461,0.72165512,847.78,847.49,0.79338244]
[1757022684761,0.20523466,847.87,847.49,0.79338244]
[1757022685361,0.92688978,847.87,847.49,0.79338244]
[1757022685660,0.72165512,847.86,847.49,0.79338244]
[1757022685859,0.72165512,847.85,847.49,0.79338244]
[1757022686061,0.72165512,847.84,847.49,0.79338244]
[1757022686261,0.72165512,847.83,847.49,0.79338244]
[1757022686462,0.72165512,847.82,847.49,0.79338244]
[1757022686659,0.72165512,847.81,847.49,0.79338244]
[1757022686859,0.72165512,847.8,847.49,0.79338244]
[1757022687063,0.72165512,847.79,847.49,0.79338244]
[1757022687260,0.72165512,847.78,847.49,0.79338244]
[1757022687464,0.20523466,847.87,847.49,0.79338244]
[1757022688065,0.92730931,847.87,847.49,0.79338244]
[1757022688262,0.72207465,847.86,847.49,0.79338244]
[1757022688466,0.72207465,847.85,847.49,0.79338244]
[1757022688765,0.72207465,847.84,847.49,0.79338244]
[1757022689065,0.72207465,847.83,847.49,0.79338244]
[1757022689266,0.72207465,847.82,847.49,0.79338244]
[1757022689462,0.72207465,847.81,847.49,0.79338244]
[1757022689661,0.72207465,847.8,847.49,0.79338244]
[1757022689862,0.72207465,847.79,847.49,0.79338244]
[1757022690066,0.72207465,847.78,847.49,0.79338244]
[1757022690365,0.20523466,847.87,847.49,0.79338244]
[1757022691066,0.92730927,847.87,847.49,0.79338244]
[1757022691263,0.72207461,847.86,847.49,0.79338244]
[1757022691462,0.72207461,847.85,847.49,0.79338244]
[1757022691667,0.72207461,847.84,847.49,0.79338244]
[1757022691967,0.72207461,847.83,847.49,0.79338244]
[1757022692169,0.72207461,847.82,847.49,0.79338244]
[1757022692363,0.72207461,847.81,847.49,0.79338244]
[1757022692668,0.72207461,847.8,847.49,0.79338244]
[1757022692866,0.72207461,847.79,847.49,0.79338244]
[1757022693064,0.72207461,847.78,847.49,0.79338244]
[1757022693267,0.20523466,847.87,847.49,0.79338244]
[1757022694465,0.92730973,847.87,847.49,0.79338244]
[1757022694763,0.72207507,847.86,847.49,0.79338244]
[1757022694968,0.72207507,847.85,847.49,0.79338244]
[1757022695168,0.72207507,847.84,847.49,0.79338244]
[1757022695371,0.72207507,847.83,847.49,0.79338244]
[1757022695565,0.72207507,847.82,847.49,0.79338244]
[1757022695770,0.72207507,847.81,847.49,0.79338244]
[1757022695970,0.72207507,847.8,847.49,0.79338244]
[1757022696171,0.72207507,847.79,847.49,0.79338244]
[1757022696371,0.72207507,847.78,847.49,0.79338244]
[1757022696567,0.20523466,847.87,847.49,0.79338244]
[1757022696970,0.92730982,847.87,847.49,0.79338244]
[1757022697267,0.72207516,847.86,847.49,0.79338244]
[1757022697467,0.72207516,847.85,847.49,0.79338244]
[1757022697671,0.72207516,847.84,847.49,0.79338244]
[1757022697868,0.72207516,847.83,847.49,0.79338244]
[1757022698067,0.72207516,847.82,847.49,0.79338244]
[1757022698267,0.72207516,847.81,847.49,0.79338244]
[1757022698468,0.72207516,847.8,847.49,0.79338244]
[1757022698668,0.72207516,847.79,847.49,0.79338244]
[1757022698875,0.72207516,847.78,847.49,0.79338244]
[1757022699072,0.20523466,847.87,847.49,0.79338244]
[1757022699473,0.92730967,847.87,847.49,0.79338244]
[1757022699674,0.72207501,847.86,847.49,0.79338244]
[1757022699869,0.72207501,847.85,847.49,0.79338244]
[1757022700173,0.72207501,847.84,847.49,0.79338244]
[1757022700371,0.72207501,847.83,847.49,0.79338244]
[1757022700572,0.72207501,847.82,847.49,0.79338244]
[1757022700875,0.72207501,847.81,847.49,0.79338244]
[1757022701076,0.72207501,847.8,847.49,0.79338244]
[1757022701277,0.72207501,847.79,847.49,0.79338244]
[1757022701477,0.72207501,847.78,847.49,0.79338244]
[1757022701678,0.20523466,847.87,847.49,0.79338244]
[1757022702078,0.92730982,847.87,847.49,0.79338244]
[1757022702278,0.72207516,847.86,847.49,0.79338244]
[1757022702575,0.72207516,847.85,847.49,0.79338244]
[1757022702774,0.72207516,847.84,847.49,0.79338244]
[1757022702975,0.72207516,847.83,847.49,0.79338244]
[1757022703175,0.72207516,847.82,847.49,0.79338244]
[1757022703377,0.72207516,847.81,847.49,0.79338244]
[1757022703574,0.72207516,847.8,847.49,0.79338244]
[1757022703774,0.72207516,847.79,847.49,0.79338244]
[1757022703974,0.72207516,847.78,847.49,0.79338244]
[1757022704175,0.20523466,847.87,847.49,0.79338244]
[1757022704576,0.92730977,847.87,847.49,0.79338244]
[1757022704773,0.72207511,847.86,847.49,0.79338244]
[1757022704976,0.72207511,847.85,847.49,0.79338244]
[1757022705179,0.72207511,847.84,847.49,0.79338244]
[1757022705479,0.72207511,847.83,847.49,0.79338244]
[1757022705781,0.72207511,847.82,847.49,0.79338244]
[1757022705975,0.72207511,847.81,847.49,0.79338244]
[1757022706176,0.72207511,847.8,847.49,0.79338244]
[1757022706380,0.72207511,847.79,847.49,0.79338244]
[1757022706576,0.72207511,847.78,847.49,0.79338244]
[1757022706775,0.20523466,847.87,847.49,0.79338244]
[1757022707180,0.92730973,847.87,847.49,0.79338244]
[1757022707480,0.72207507,847.86,847.49,0.79338244]
[1757022707680,0.72207507,847.85,847.49,0.79338244]
[1757022707880,0.72207507,847.84,847.49,0.79338244]
[1757022708081,0.72207507,847.83,847.49,0.79338244]
[1757022708279,0.72207507,847.82,847.49,0.79338244]
[1757022708477,0.72207507,847.81,847.49,0.79338244]
[1757022708681,0.72207507,847.8,847.49,0.79338244]
[1757022708880,0.72207507,847.79,847.49,0.79338244]
[1757022709077,0.72207507,847.78,847.49,0.79338244]
[1757022709282,0.20523466,847.87,847.49,0.79338244]
[1757022709681,0.92730967,847.87,847.49,0.79338244]
[1757022709881,0.72207501,847.86,847.49,0.79338244]
[1757022710076,0.72207501,847.85,847.49,0.79338244]
[1757022710377,0.72207501,847.84,847.49,0.79338244]
[1757022710577,0.72207501,847.83,847.49,0.79338244]
[1757022710784,0.72207501,847.82,847.49,0.79338244]
[1757022710976,0.72207501,847.81,847.49,0.79338244]
[1757022711181,0.72207501,847.8,847.49,0.79338244]
[1757022711382,0.72207501,847.79,847.49,0.79338244]
[1757022711680,0.72207501,847.78,847.49,0.79338244]
[1757022711877,0.20523466,847.87,847.49,0.79338244]
[1757022712381,0.92730962,847.87,847.49,0.79338244]
[1757022712577,0.72207496,847.86,847.49,0.79338244]
[1757022712778,0.72207496,847.85,847.49,0.79338244]
[1757022712978,0.72207496,847.84,847.49,0.79338244]
[1757022713284,0.72207496,847.83,847.49,0.79338244]
[1757022713581,0.72207496,847.82,847.49,0.79338244]
[1757022713782,0.72207496,847.81,847.49,0.79338244]
[1757022714081,0.72207496,847.8,847.49,0.79338244]
[1757022714282,0.72207496,847.79,847.49,0.79338244]
[1757022714478,0.72207496,847.78,847.49,0.79338244]
[1757022714681,0.20523466,847.87,847.49,0.79338244]
[1757022715178,0.92730958,847.87,847.49,0.79338244]
[1757022715378,0.72207492,847.86,847.49,0.79338244]
[1757022715577,0.72207492,847.85,847.49,0.79338244]
[1757022715777,0.72207492,847.84,847.49,0.79338244]
[1757022715978,0.72207492,847.83,847.49,0.79338244]
[1757022716180,0.72207492,847.82,847.49,0.79338244]
[1757022716380,0.72207492,847.81,847.49,0.79338244]
[1757022716577,0.72207492,847.8,847.49,0.79338244]
[1757022716778,0.72207492,847.79,847.49,0.79338244]
[1757022716976,0.72207492,847.78,847.49,0.79338244]
[1757022717181,0.20523466,847.87,847.49,0.79338244]
[1757022717477,0.72235995,847.86,847.49,0.79338244]
[1757022722591,0.20523466,847.87,847.49,0.79338244]
[1757022722790,0.92759461,847.87,847.49,0.79338244]
[1757022722987,0.72235995,847.86,847.49,0.79338244]
[1757022725490,0.72235995,847.85,847.49,0.79338244]
[1757022725693,0.72235995,847.84,847.49,0.79338244]
[1757022725993,0.72235995,847.83,847.49,0.79338244]
[1757022726191,0.72235995,847.82,847.49,0.79338244]
[1757022726394,0.72235995,847.81,847.49,0.79338244]
[1757022726591,0.72235995,847.8,847.49,0.79338244]
[1757022726891,0.72235995,847.79,847.49,0.79338244]
[1757022727092,0.72235995,847.78,847.49,0.79338244]
[1757022727290,0.20523466,847.87,847.49,0.79338244]
[1757022727992,0.72235995,847.86,847.49,0.79338244]
[1757022728196,0.20523466,847.87,847.49,0.79338244]
[1757022729298,0.72235995,847.86,847.49,0.79338244]
[1757022732997,0.72235989,847.85,847.49,0.79338244]
[1757022733198,0.72235989,847.84,847.49,0.79338244]
[1757022733395,0.72235989,847.83,847.49,0.79338244]
[1757022733594,0.72235989,847.82,847.49,0.79338244]
[1757022733798,0.72235989,847.81,847.49,0.79338244]
[1757022734096,0.72235989,847.8,847.49,0.79338244]
[1757022734398,0.72235989,847.79,847.49,0.79338244]
[1757022734694,0.72235989,847.78,847.49,0.79338244]
[1757022734900,0.20523466,847.87,847.49,0.79338244]
[1757022735194,0.72235984,847.86,847.49,0.79338244]
[1757022743208,0.72235984,847.85,847.48,0.79338244]
[1757022743403,0.72235984,847.84,847.48,0.79338244]
[1757022743605,0.72235984,847.83,847.48,0.79338244]
[1757022743809,0.72235984,847.82,847.48,0.79338244]
[1757022744003,0.72235984,847.81,847.48,0.79338244]
[1757022744307,0.72235984,847.8,847.49,0.79338244]
[1757022744505,0.72235984,847.79,847.49,0.79338244]
[1757022744705,0.20523466,847.87,847.49,0.79338244]
[1757022745506,0.92759357,847.87,847.49,0.79338244]
[1757022745710,0.72235891,847.86,847.49,0.79338244]
[1757022745911,0.72235891,847.85,847.49,0.79338244]
[1757022746111,0.72235891,847.84,847.49,0.79338244]
[1757022746411,0.72235891,847.83,847.49,0.79338244]
[1757022746610,0.72235891,847.82,847.49,0.79338244]
[1757022746812,0.72235891,847.81,847.49,0.79338244]
[1757022747013,0.72235891,847.8,847.49,0.79338244]
[1757022747213,0.72235891,847.79,847.49,0.79338244]
[1757022747409,0.72235891,847.78,847.49,0.79338244]
[1757022747615,0.20523466,847.87,847.49,0.79338244]
[1757022748212,0.92729135,847.87,847.49,0.79338244]
[1757022748412,0.72205669,847.86,847.49,0.79338244]
[1757022748716,0.72205669,847.85,847.49,0.79338244]
[1757022749015,0.72205669,847.84,847.49,0.79338244]